bitfinex-derivatives/quotes_BTCF0:USTF0_20241015
["timestamp","ask_amount","ask_price","bid_price","bid_amount"]
[1729008605608,0.22638,66435.0,66434.0,0.0004]
[1729008605805,0.0899,66435.0,66434.0,0.075681]
[1729008606006,0.0899,66435.0,66434.0,0.436481]
[1729008606216,0.0288,66435.0,66434.0,0.436481]
[1729008607406,0.05070777,66435.0,66434.0,0.436481]
[1729008609405,0.0288,66435.0,66434.0,0.436481]
[1729008609804,0.0288,66435.0,66434.0,0.888041]
[1729008610007,0.0288,66435.0,66434.0,0.436481]
[1729008613311,0.0288,66435.0,66434.0,0.888041]
[1729008613511,0.0004,66455.0,66445.0,0.075269]
[1729008613713,0.0004,66455.0,66445.0,1.057269]
[1729008613916,0.075658,66455.0,66445.0,0.967269]
[1729008614216,0.02225206,66449.0,66445.0,2.467269]
[1729008614803,0.0014,66446.0,66445.0,2.468269]
[1729008615205,0.0014,66446.0,66445.0,2.472269]
[1729008615206,0.0024,66446.0,66445.0,2.472269]
[1729008616119,0.0024,66446.0,66445.0,2.562269]
[1729008616413,0.0004,66455.0,66454.0,0.075258]
[1729008616604,0.061,66468.0,66464.0,0.075247]
[1729008616812,0.02164882,66467.0,66464.0,0.696447]
[1729008617306,0.00444632,66475.0,66474.0,0.075236]
[1729008617502,0.00444632,66475.0,66474.0,0.696436]
[1729008617809,0.00444632,66475.0,66474.0,0.3612]
[1729008617810,0.70142849,66475.0,66474.0,0.3612]
[1729008618117,0.07968132,66475.0,66474.0,0.0004]
[1729008618309,0.67968132,66475.0,66474.0,0.0004]
[1729008618515,0.67968132,66475.0,66474.0,0.0144]
[1729008618715,0.07968132,66475.0,66474.0,0.2744]
[1729008618909,0.07968132,66475.0,66474.0,0.2604]
[1729008619126,0.07968132,66475.0,66474.0,0.2744]
[1729008619308,0.00444632,66475.0,66474.0,0.089636]
[1729008619511,0.00444632,66475.0,66474.0,0.363636]
[1729008620706,0.00444632,66475.0,66474.0,0.103636]
[1729008621019,1.39100132,66475.0,66471.0,0.00076]
[1729008621317,0.075257,66455.0,66454.0,0.075657]
[1729008621707,0.075252,66460.0,66457.0,0.075255]
[1729008621914,0.075252,66460.0,66459.0,0.0004]
[1729008622210,0.075252,66460.0,66454.0,0.0004]
[1729008622211,0.075257,66455.0,66454.0,0.0004]
[1729008622414,0.075257,66455.0,66451.0,0.3608]
[1729008622415,0.075261,66452.0,66451.0,0.3608]
[1729008622608,0.075262,66451.0,66445.0,0.3612]
[1729008622813,0.0004,66455.0,66454.0,0.075258]
[1729008623120,0.0004,66455.0,66454.0,0.335658]
[1729008623418,0.0004,66460.0,66459.0,0.075253]
[1729008623618,0.0004,66460.0,66459.0,0.335253]
[1729008623826,0.00225795,66466.0,66464.0,0.075247]
[1729008624014,0.00225795,66466.0,66464.0,0.696447]
[1729008624711,0.08068132,66475.0,66464.0,0.696447]
[1729008624712,0.00444632,66475.0,66464.0,0.696447]
[1729008624912,0.00444632,66475.0,66474.0,0.075236]
[1729008625113,0.00444632,66475.0,66474.0,0.335636]
[1729008626713,0.00225696,66486.0,66474.0,1.386956]
[1729008626918,0.00225696,66486.0,66485.0,0.335623]
[1729008627722,0.07747896,66486.0,66485.0,0.335623]
[1729008628011,0.07947896,66486.0,66485.0,0.0114]
[1729008628513,0.07847896,66486.0,66485.0,0.0004]
[1729008628720,0.07947896,66486.0,66485.0,0.0144]
[1729008629425,0.00325696,66486.0,66485.0,0.363623]
[1729008629621,0.00325696,66486.0,66485.0,0.2884]
[1729008630019,0.00325696,66486.0,66485.0,0.363623]
[1729008630327,0.07847896,66486.0,66485.0,0.363623]
[1729008630523,0.00325696,66486.0,66485.0,0.363623]
[1729008632519,0.07847896,66486.0,66485.0,0.363623]
[1729008633025,0.00325696,66486.0,66485.0,0.363623]
[1729008633228,0.07847896,66486.0,66485.0,0.363623]
[1729008633416,0.07847896,66486.0,66485.0,0.2884]
[1729008633729,0.00325696,66486.0,66485.0,0.363623]
[1729008634322,0.076222,66486.0,66485.0,0.363623]
[1729008634518,0.076222,66486.0,66485.0,0.2884]
[1729008634720,0.076222,66486.0,66485.0,0.0284]
[1729008636127,0.936222,66486.0,66478.0,0.3608]
[1729008636427,0.07523,66479.0,66478.0,0.3608]
[1729008636627,0.07523,66479.0,66468.0,0.26]
[1729008636930,0.26,66481.0,66465.0,0.3608]
[1729008636931,0.075235,66475.0,66469.0,0.26]
[1729008637119,0.075235,66475.0,66473.0,0.075236]
[1729008637314,0.075235,66475.0,66474.0,0.075636]
[1729008637521,0.075231,66479.0,66478.0,0.08923]
[1729008637826,0.38245841,66482.0,66481.0,0.075228]
[1729008638126,0.38245841,66482.0,66481.0,0.075628]
[1729008638327,0.02165841,66482.0,66481.0,0.075628]
[1729008638625,0.075217,66491.0,66490.0,0.075217]
[1729008638827,0.075217,66491.0,66490.0,0.075617]
[1729008639625,0.075212,66496.0,66495.0,0.075209]
[1729008639814,0.075212,66496.0,66495.0,0.075609]
[1729008640528,0.26,66499.0,66495.0,0.0004]
[1729008640921,0.02226568,66500.0,66499.0,0.075207]
[1729008641118,0.26,66505.0,66499.0,0.075607]
[1729008641328,0.065,66509.0,66500.0,0.335606]
[1729008641523,0.065,66509.0,66500.0,0.075606]
[1729008641731,0.03134521,66501.0,66500.0,0.075606]
[1729008642030,0.0094487,66501.0,66500.0,0.075606]
[1729008643121,0.0094487,66501.0,66500.0,0.0004]
[1729008643326,0.3446537,66501.0,66500.0,0.0004]
[1729008643522,0.9466537,66501.0,66500.0,0.0144]
[1729008643727,0.0114487,66501.0,66500.0,0.0144]
[1729008644131,0.03374968,66501.0,66500.0,0.0144]
[1729008644423,0.0114487,66501.0,66500.0,0.0144]
[1729008645019,0.0114487,66501.0,66500.0,0.089606]
[1729008645227,0.0114487,66501.0,66500.0,0.0144]
[1729008645429,0.0866537,66501.0,66500.0,0.0144]
[1729008646228,0.03327575,66501.0,66500.0,0.6352]
[1729008646421,0.03327575,66501.0,66500.0,0.710406]
[1729008647538,0.03227575,66501.0,66500.0,0.704406]
[1729008647736,0.03327575,66501.0,66500.0,0.714406]
[1729008648629,0.03227575,66501.0,66500.0,0.457406]
[1729008649140,0.03227575,66501.0,66500.0,0.717406]
[1729008650330,0.00225617,66510.0,66500.0,0.717406]
[1729008650331,0.00225617,66510.0,66509.0,0.075196]
[1729008650536,0.00225617,66510.0,66509.0,0.695996]
[1729008650722,0.02382399,66510.0,66509.0,0.696396]
[1729008650928,0.00225617,66510.0,66509.0,0.696396]
[1729008651427,0.02209407,66517.0,66509.0,0.6212]
[1729008651633,0.075187,66517.0,66516.0,0.0004]
[1729008652140,0.335187,66517.0,66516.0,0.0004]
[1729008652334,0.335187,66517.0,66516.0,2.759e-05]
[1729008652335,0.935187,66517.0,66516.0,2.759e-05]
[1729008653135,1.386187,66517.0,66516.0,2.759e-05]
[1729008653535,1.386187,66517.0,66516.0,0.01002759]
[1729008654039,1.386187,66517.0,66516.0,0.01702759]
[1729008654836,1.386187,66517.0,66516.0,0.02302759]
[1729008655140,1.40749715,66517.0,66516.0,0.02702759]
[1729008655846,1.40749715,66517.0,66516.0,0.01302759]
[1729008656031,1.40749715,66517.0,66516.0,0.02702759]
[1729008656534,1.47890495,66517.0,66516.0,0.01182461]
[1729008656736,1.47890495,66517.0,66500.0,0.0004]
[1729008656737,0.075188,66516.0,66501.0,0.07746034]
[1729008656940,0.075205,66501.0,66500.0,0.0004]
[1729008657241,0.0752,66506.0,66505.0,0.075199]
[1729008657445,0.0752,66506.0,66505.0,0.075599]
[1729008657833,0.435996,66509.0,66508.0,0.075197]
[1729008658142,0.695996,66509.0,66508.0,0.0004]
[1729008658437,0.075204,66502.0,66501.0,0.014]
[1729008658641,0.696004,66502.0,66501.0,0.014]
[1729008658840,1.296004,66502.0,66501.0,0.014]
[1729008659040,0.075205,66501.0,66500.0,0.0004]
[1729008659742,1.386325,66501.0,66483.0,0.075225]
[1729008659942,0.075216,66491.0,66490.0,0.0004]
[1729008660134,0.075216,66491.0,66481.0,0.0004]
[1729008660135,0.075227,66482.0,66481.0,0.0004]
[1729008660435,0.075227,66482.0,66474.0,0.0004]
[1729008660640,0.33523,66479.0,66474.0,0.0004]
[1729008661346,0.33523,66479.0,66459.0,0.2604]
[1729008661347,0.075246,66465.0,66461.0,0.3608]
[1729008661644,0.335246,66465.0,66461.0,0.3608]
[1729008661830,0.075246,66465.0,66463.0,0.075247]
[1729008662030,0.075243,66468.0,66467.0,0.075244]
[1729008662237,0.075243,66468.0,66467.0,0.075644]
[1729008662836,0.335243,66468.0,66467.0,0.0004]
[1729008663746,0.335243,66468.0,66467.0,0.075644]
[1729008663747,0.02268698,66468.0,66467.0,0.075644]
[1729008664049,0.0004,66475.0,66474.0,0.075236]
[1729008664050,0.075636,66475.0,66474.0,0.075236]
[1729008664342,0.02193452,66475.0,66474.0,0.075636]
[1729008665344,0.02293452,66475.0,66474.0,0.089636]
[1729008666049,0.02293452,66475.0,66474.0,0.080636]
[1729008666346,0.0004,66479.0,66476.0,0.075233]
[1729008666533,0.0004,66479.0,66478.0,0.335631]
[1729008666735,0.02239618,66479.0,66478.0,0.335631]
[1729008666937,0.0004,66479.0,66478.0,0.335631]
[1729008667140,0.0004,66479.0,66478.0,0.075631]
[1729008667538,0.07563,66479.0,66478.0,0.0004]
[1729008668354,1.12691,66479.0,66474.0,0.0004]
[1729008668648,0.075242,66468.0,66464.0,0.0004]
[1729008668942,0.436042,66468.0,66464.0,0.0004]
[1729008669339,0.075252,66460.0,66459.0,0.0004]
[1729008669539,0.696052,66460.0,66459.0,0.0004]
[1729008669842,0.45805116,66460.0,66459.0,0.0004]
[1729008670648,0.03599916,66460.0,66459.0,0.075653]
[1729008670837,0.014,66460.0,66459.0,0.075653]
[1729008671044,0.089252,66460.0,66459.0,0.075653]
[1729008671751,1.310052,66460.0,66459.0,0.0004]
[1729008671948,1.310052,66460.0,66442.0,0.3608]
[1729008671949,0.075265,66448.0,66440.0,0.075274]
[1729008672139,0.075265,66448.0,66434.0,0.0004]
[1729008672140,0.075267,66446.0,66435.0,0.075279]
[1729008672340,0.07528,66435.0,66434.0,0.0004]
[1729008673147,0.33528,66435.0,66434.0,0.0004]
[1729008673347,0.35642049,66435.0,66434.0,0.0004]
[1729008674049,0.35642049,66435.0,66425.0,0.0004]
[1729008674050,0.075284,66431.0,66425.0,0.0004]
[1729008674253,0.07529,66426.0,66419.0,0.0004]
[1729008674449,0.696097,66420.0,66419.0,0.0004]
[1729008674643,0.436097,66420.0,66419.0,0.0004]
[1729008674843,0.0753,66417.0,66416.0,0.0004]
[1729008675257,1.12698,66417.0,66416.0,0.0004]
[1729008675453,0.52698,66417.0,66416.0,0.0004]
[1729008675650,0.0753,66417.0,66416.0,0.0004]
[1729008676052,0.983,66420.0,66416.0,0.0004]
[1729008676355,0.0753,66417.0,66416.0,0.0004]
[1729008676852,0.6893,66417.0,66416.0,0.0004]
[1729008677053,0.6893,66417.0,66413.0,0.0004]
[1729008677054,0.075304,66414.0,66413.0,0.0004]
[1729008677263,0.075304,66414.0,66395.0,1.5]
[1729008677264,0.5204,66410.0,66396.0,0.075324]
[1729008677466,0.335323,66397.0,66396.0,0.075324]
[1729008677751,0.075323,66397.0,66396.0,0.13334695]
[1729008677956,0.075323,66397.0,66394.0,0.06595918]
[1729008677957,0.075317,66402.0,66394.0,0.42675918]
[1729008678144,0.075317,66402.0,66401.0,0.0004]
[1729008679054,0.075325,66395.0,66394.0,0.06695918]
[1729008679259,0.075325,66395.0,66394.0,0.001]
[1729008679559,0.3608,66395.0,66387.0,0.26]
[1729008679859,0.07533,66392.0,66388.0,0.075333]
[1729008680065,0.3608,66395.0,66391.0,0.26]
[1729008680355,0.3748,66395.0,66394.0,0.0004]
[1729008680656,0.450125,66395.0,66394.0,0.0004]
[1729008681662,0.450125,66395.0,66394.0,0.0014]
[1729008681663,0.461125,66395.0,66394.0,0.0014]
[1729008681961,0.447125,66395.0,66394.0,0.0014]
[1729008682855,0.46910744,66395.0,66394.0,0.0014]
[1729008683062,0.48310744,66395.0,66394.0,0.0014]
[1729008683259,1.53494744,66395.0,66394.0,0.0014]
[1729008683756,0.93494744,66395.0,66394.0,0.0014]
[1729008683949,1.53494744,66395.0,66394.0,0.0014]
[1729008684152,1.53494744,66395.0,66394.0,0.0007]
[1729008684552,1.53534744,66395.0,66394.0,0.0007]
[1729008685057,0.48350744,66395.0,66394.0,0.0007]
[1729008685260,0.48350744,66395.0,66394.0,0.076026]
[1729008686165,0.04738244,66395.0,66394.0,0.076026]
[1729008686354,0.0004,66402.0,66394.0,0.076026]
[1729008686555,0.0004,66402.0,66401.0,0.075718]
[1729008686750,0.02180352,66402.0,66401.0,0.075718]
[1729008686952,0.0004,66420.0,66402.0,0.075317]
[1729008687163,0.02236247,66410.0,66409.0,0.075309]
[1729008687657,0.02236247,66410.0,66409.0,0.075709]
[1729008687857,0.0004,66417.0,66413.0,0.075305]
[1729008688054,0.0004,66417.0,66416.0,0.075301]
[1729008688265,0.0004,66417.0,66416.0,0.075701]
[1729008688561,0.0004,66420.0,66419.0,0.075298]
[1729008688868,0.0004,66420.0,66419.0,0.335698]
[1729008689865,0.0034,66420.0,66419.0,0.336698]
[1729008690061,0.0034,66420.0,66419.0,0.697498]
[1729008690368,0.0004,66431.0,66425.0,0.075291]
[1729008690563,0.0004,66431.0,66425.0,0.696491]
[1729008691870,0.00225894,66434.0,66433.0,0.075282]
[1729008692168,0.00225894,66434.0,66433.0,0.696482]
[1729008692471,0.07753994,66434.0,66433.0,0.0004]
[1729008693173,0.07529,66426.0,66425.0,0.0024]
[1729008693464,0.075297,66420.0,66416.0,0.0004]
[1729008693666,0.3353,66417.0,66416.0,0.0004]
[1729008694668,0.0753,66417.0,66416.0,0.0004]
[1729008694969,0.0753,66417.0,66416.0,0.075701]
[1729008695359,0.0773,66417.0,66416.0,0.102701]
[1729008695571,0.002,66417.0,66416.0,0.102701]
[1729008695963,0.0773,66417.0,66416.0,0.102701]
[1729008696273,0.002,66417.0,66416.0,0.102701]
[1729008696564,0.0773,66417.0,66416.0,0.0274]
[1729008696968,0.0773,66417.0,66416.0,0.0254]
[1729008697169,0.0983137,66417.0,66416.0,0.0254]
[1729008697559,0.0983137,66417.0,66416.0,0.0244]
[1729008698164,1.1499937,66417.0,66416.0,0.0244]
[1729008698462,0.0983137,66417.0,66416.0,0.0244]
[1729008700265,0.0973137,66417.0,66416.0,0.0114]
[1729008700576,0.0230137,66417.0,66416.0,0.100701]
[1729008700866,0.002,66417.0,66416.0,0.100701]
[1729008702674,0.3373,66417.0,66416.0,0.0254]
[1729008702967,0.0773,66417.0,66416.0,0.0254]
[1729008703167,0.0773,66417.0,66416.0,0.100701]
[1729008703474,0.002,66417.0,66416.0,0.360701]
[1729008703973,0.002,66417.0,66416.0,0.812381]
[1729008705469,0.002,66417.0,66416.0,0.360701]
[1729008707269,0.002,66417.0,66416.0,0.100701]
[1729008707573,0.0773,66417.0,66416.0,0.100701]
[1729008707975,0.3373,66417.0,66416.0,0.0254]
[1729008708171,1.38898,66417.0,66416.0,0.0254]
[1729008708376,0.335308,66410.0,66401.0,0.0004]
[1729008708580,0.436108,66410.0,66401.0,0.0004]
[1729008708876,0.436108,66410.0,66403.0,0.26]
[1729008709067,0.436108,66410.0,66409.0,0.075709]
[1729008709275,0.0004,66414.0,66413.0,0.075305]
[1729008709471,0.0004,66414.0,66413.0,0.696105]
[1729008709672,0.001,66417.0,66416.0,0.075301]
[1729008710082,0.02140166,66418.0,66416.0,0.0004]
[1729008710278,0.0004,66420.0,66417.0,0.2604]
[1729008710580,0.0004,66420.0,66418.0,0.075699]
[1729008710774,0.02171939,66419.0,66418.0,0.075699]
[1729008710977,0.0004,66420.0,66418.0,0.675699]
[1729008711171,0.02173013,66424.0,66419.0,0.3612]
[1729008711370,0.3612,66435.0,66433.0,0.075282]
[1729008711577,0.3612,66435.0,66433.0,0.335682]
[1729008711777,0.02452877,66434.0,66433.0,0.335682]
[1729008711976,0.00265894,66434.0,66433.0,0.335682]
[1729008713176,0.00365894,66434.0,66433.0,0.398382]
[1729008713379,0.00365894,66434.0,66433.0,1.898382]
[1729008713777,0.02619949,66440.0,66438.0,0.075275]
[1729008714071,0.03147461,66450.0,66449.0,0.075264]
[1729008714277,0.05340246,66450.0,66449.0,0.335664]
[1729008714977,0.03147461,66450.0,66449.0,0.335664]
[1729008715278,0.03147461,66450.0,66449.0,1.387144]
[1729008715780,0.03147461,66450.0,66449.0,1.527144]
[1729008715974,0.03147461,66450.0,66449.0,3.027144]
[1729008716478,0.01543692,66456.0,66455.0,0.075257]
[1729008716690,0.01543692,66456.0,66455.0,0.475657]
[1729008717486,0.01543692,66456.0,66455.0,1.527097]
[1729008717792,0.0004,66465.0,66456.0,0.4514]
[1729008718082,0.00533311,66484.0,66467.0,0.075244]
[1729008718083,0.01217033,66480.0,66467.0,0.075244]
[1729008718274,0.08740033,66480.0,66467.0,1.287404]
[1729008718473,0.02183298,66475.0,66469.0,0.075241]
[1729008718783,0.0004,66475.0,66469.0,0.075641]
[1729008718986,0.0004,66475.0,66469.0,1.126961]
[1729008719389,0.0004,66475.0,66469.0,0.075641]
[1729008719985,0.01975672,66470.0,66469.0,0.676641]
[1729008720186,0.0004,66475.0,66474.0,0.075236]
[1729008720386,0.0004,66475.0,66474.0,0.475236]
[1729008720686,0.0004,66475.0,66474.0,1.526556]
[1729008721277,0.0004,66475.0,66474.0,1.526956]
[1729008721477,0.0144,66475.0,66474.0,0.926956]
[1729008722089,0.0144,66475.0,66474.0,0.475636]
[1729008722585,0.0144,66475.0,66474.0,0.926956]
[1729008722894,0.0004,66475.0,66474.0,3.026956]
[1729008723188,0.0144,66475.0,66474.0,3.027956]
[1729008723587,0.07711428,66475.0,66474.0,3.027956]
[1729008723777,0.09111428,66475.0,66474.0,3.027956]
[1729008724088,0.09111428,66475.0,66474.0,1.527956]
[1729008724478,0.09111428,66475.0,66474.0,0.476636]
[1729008725280,0.09111428,66475.0,66474.0,1.527956]
[1729008725487,0.09111428,66475.0,66474.0,0.476636]
[1729008727087,0.16634928,66475.0,66474.0,0.0014]
[1729008727575,0.09111428,66475.0,66474.0,0.4014]
[1729008727781,0.09111428,66475.0,66474.0,1.076636]
[1729008727981,0.09111428,66475.0,66474.0,1.527956]
[1729008728283,0.09111428,66475.0,66474.0,1.595656]
[1729008728898,0.01252672,66476.0,66475.0,0.075235]
[1729008729194,0.05511628,66478.0,66477.0,0.075232]
[1729008729487,0.05511628,66478.0,66477.0,0.436432]
[1729008729675,0.05511628,66478.0,66477.0,1.487712]
[1729008729888,0.00689494,66483.0,66479.0,0.07523]
[1729008730183,0.00689494,66483.0,66481.0,0.475628]
[1729008730384,0.00689494,66483.0,66481.0,0.836428]
[1729008730589,0.00689494,66483.0,66481.0,1.887668]
[1729008732082,0.00689494,66483.0,66481.0,0.836428]
[1729008732283,0.0014,66482.0,66481.0,0.836428]
[1729008732592,0.0014,66482.0,66481.0,0.0004]
[1729008732593,0.076627,66482.0,66481.0,0.0004]
[1729008732895,0.075231,66478.0,66469.0,0.0004]
[1729008733077,0.3612,66476.0,66469.0,0.0004]
[1729008733283,0.3612,66476.0,66455.0,0.3612]
[1729008733284,0.075242,66468.0,66464.0,0.075247]
[1729008733484,0.075242,66468.0,66466.0,0.075244]
[1729008733686,0.075242,66468.0,66455.0,0.3612]
[1729008733687,0.0004,66470.0,66465.0,0.4]
[1729008733892,0.0004,66470.0,66469.0,0.075641]
[1729008734089,0.07564,66470.0,66469.0,0.0004]
[1729008734286,0.075246,66466.0,66465.0,0.075245]
[1729008734485,0.3616,66470.0,66461.0,0.07565]
[1729008734486,0.0004,66468.0,66461.0,0.07565]
[1729008734681,0.075642,66468.0,66467.0,0.0004]
[1729008734887,0.0008,66468.0,66461.0,0.0004]
[1729008735089,0.0008,66468.0,66449.0,0.436463]
[1729008735090,0.075263,66450.0,66449.0,0.436463]
[1729008735387,0.3608,66453.0,66437.0,0.4]
[1729008735591,0.3608,66447.0,66437.0,0.4]
[1729008735779,0.436067,66447.0,66443.0,0.07527]
[1729008735985,0.075267,66446.0,66445.0,0.075267]
[1729008736204,0.3608,66447.0,66442.0,0.4]
[1729008736205,0.075269,66445.0,66442.0,0.4]
[1729008736493,0.075269,66445.0,66444.0,0.07527]
[1729008736893,0.3618,66447.0,66437.0,0.4]
[1729008737092,0.075274,66441.0,66440.0,0.075274]
[1729008737296,0.3608,66441.0,66435.0,0.076039]
[1729008737497,0.3608,66441.0,66426.0,0.4]
[1729008737498,0.075281,66434.0,66426.0,0.4]
[1729008737701,0.075281,66434.0,66422.0,0.00225825]
[1729008737702,0.075291,66426.0,66422.0,0.00225825]
[1729008737995,0.3608,66428.0,66425.0,0.4]
[1729008738196,0.0004,66434.0,66433.0,0.075282]
[1729008738584,0.0004,66434.0,66433.0,0.075682]
[1729008739791,0.0124,66434.0,66433.0,0.075682]
[1729008739996,0.0124,66434.0,66433.0,0.089682]
[1729008740196,0.0114,66434.0,66433.0,0.089682]
[1729008740399,0.0114,66434.0,66433.0,0.4144]
[1729008740695,0.086681,66434.0,66433.0,0.0144]
[1729008741688,0.075681,66434.0,66433.0,0.0144]
[1729008741896,0.087681,66434.0,66433.0,0.0004]
[1729008742194,0.088681,66434.0,66433.0,0.0014]
[1729008742389,0.088681,66434.0,66433.0,0.0034]
[1729008742390,0.077681,66434.0,66433.0,0.0034]
[1729008742894,0.075681,66434.0,66433.0,0.0144]
[1729008743087,0.075681,66434.0,66433.0,0.0164]
[1729008743088,0.076681,66434.0,66433.0,0.0164]
[1729008743493,0.075681,66434.0,66433.0,0.0144]
[1729008743684,0.076681,66434.0,66433.0,0.0164]
[1729008744083,0.10332546,66434.0,66433.0,0.0164]
[1729008744496,0.10332546,66434.0,66433.0,0.0024]
[1729008744690,0.10332546,66434.0,66423.0,0.0004]
[1729008744691,0.075292,66424.0,66423.0,0.0004]
[1729008744895,0.075297,66420.0,66419.0,0.0004]
[1729008745900,0.0084,66424.0,66423.0,0.075293]
[1729008746092,0.0084,66424.0,66423.0,0.475693]
[1729008746297,0.0004,66424.0,66423.0,0.475693]
[1729008747495,0.075692,66424.0,66423.0,0.4004]
[1729008747697,0.075692,66424.0,66423.0,0.4014]
[1729008747698,0.089692,66424.0,66423.0,0.4014]
[1729008747997,0.089692,66424.0,66423.0,0.0014]
[1729008748200,0.099692,66424.0,66423.0,0.4014]
[1729008748398,0.1126958,66424.0,66423.0,0.4004]
[1729008748593,0.1126958,66424.0,66423.0,0.476693]
[1729008748594,0.0414038,66424.0,66423.0,0.476693]
[1729008748907,0.0554038,66424.0,66423.0,0.476693]
[1729008749901,0.1306958,66424.0,66423.0,0.476693]
[1729008750098,0.1306958,66424.0,66423.0,0.0014]
[1729008750606,0.075297,66420.0,66419.0,0.0004]
[1729008750909,0.075298,66419.0,66418.0,0.0004]
[1729008751399,0.436098,66419.0,66418.0,0.0004]
[1729008752399,0.3608,66419.0,66418.0,0.475699]
[1729008752590,0.0144,66420.0,66419.0,0.075298]
[1729008752997,0.0144,66420.0,66419.0,0.075698]
[1729008754007,0.075697,66420.0,66419.0,0.0004]
[1729008754208,0.436497,66420.0,66419.0,0.0004]
[1729008755005,0.450497,66420.0,66419.0,0.0004]
[1729008755507,0.451497,66420.0,66419.0,0.0004]
[1729008755701,0.075304,66414.0,66409.0,0.0004]
[1729008756002,0.436104,66414.0,66409.0,0.0004]
[1729008756406,1.487824,66414.0,66409.0,0.0004]
[1729008756709,0.075317,66402.0,66399.0,1.5]
[1729008756902,0.075317,66402.0,66399.0,1.57608]
[1729008757201,0.3608,66403.0,66399.0,0.00076]
[1729008757406,0.3608,66403.0,66393.0,0.00225924]
[1729008757407,0.075326,66394.0,66393.0,0.00225924]
[1729008757701,0.436126,66394.0,66393.0,1.57758624]
[1729008758102,0.3608,66394.0,66393.0,0.07758624]
[1729008758302,0.3608,66400.0,66393.0,0.07758624]
[1729008758303,0.10190745,66403.0,66393.0,0.47758624]
[1729008758607,0.04059045,66403.0,66402.0,0.075717]
[1729008759200,0.02659045,66403.0,66402.0,0.075717]
[1729008759400,0.3608,66406.0,66405.0,0.075314]
[1729008759600,0.3608,66406.0,66405.0,0.075714]
[1729008759799,0.3608,66406.0,66405.0,0.0004]
[1729008759800,0.46243524,66406.0,66405.0,0.0004]
[1729008760910,0.91419524,66406.0,66405.0,0.0004]
[1729008761110,0.075316,66403.0,66402.0,0.0004]
[1729008761700,0.075326,66394.0,66393.0,0.00225924]
[1729008761905,0.436126,66394.0,66393.0,0.00225924]
[1729008762314,0.436126,66394.0,66393.0,0.07758624]
[1729008762613,0.075326,66394.0,66393.0,0.07758624]
[1729008762913,0.436126,66394.0,66393.0,0.00225924]
[1729008763115,0.450126,66394.0,66393.0,0.00225924]
[1729008764120,0.028,66394.0,66393.0,0.075327]
[1729008764307,0.028,66394.0,66393.0,0.475327]
[1729008764808,0.075332,66389.0,66388.0,0.00076]
[1729008765008,0.075332,66389.0,66388.0,0.075333]
[1729008765200,0.41644418,66394.0,66385.0,0.075337]
[1729008765406,0.075337,66385.0,66384.0,0.075337]
[1729008765612,0.3608,66388.0,66380.0,1.5]
[1729008765911,0.075338,66384.0,66383.0,0.075338]
[1729008766104,0.3608,66388.0,66383.0,0.4]
[1729008766416,0.436133,66388.0,66387.0,0.075734]
[1729008766713,0.436133,66388.0,66387.0,0.0004]
[1729008768018,0.437133,66388.0,66387.0,0.0004]
[1729008768320,0.3628,66388.0,66387.0,0.075734]
[1729008769203,0.002,66388.0,66387.0,0.075734]
[1729008769410,0.001,66388.0,66387.0,0.075734]
[1729008769611,0.002,66388.0,66387.0,0.075734]
[1729008771120,0.0004,66403.0,66402.0,0.075317]
[1729008771417,0.0004,66403.0,66402.0,0.075717]
[1729008772009,0.02721891,66403.0,66402.0,0.075717]
[1729008772225,0.10253491,66403.0,66402.0,0.075717]
[1729008772418,0.10353491,66403.0,66402.0,0.0004]
[1729008772715,0.10353491,66403.0,66402.0,0.075717]
[1729008772920,0.02821891,66403.0,66402.0,0.475717]
[1729008773426,0.03821891,66403.0,66402.0,0.475717]
[1729008774125,0.03821891,66403.0,66402.0,0.075717]
[1729008774126,0.10253491,66403.0,66402.0,0.075717]
[1729008774419,0.04521891,66403.0,66402.0,0.076717]
[1729008774914,0.02921891,66403.0,66402.0,0.075717]
[1729008775117,0.03021891,66403.0,66402.0,0.075717]
[1729008775419,0.02821891,66403.0,66402.0,0.075717]
[1729008775621,0.03021891,66403.0,66402.0,0.075717]
[1729008776019,0.0034,66403.0,66402.0,0.836517]
[1729008776425,0.00225987,66408.0,66407.0,0.075312]
[1729008776612,0.00225987,66408.0,66407.0,0.475312]
[1729008776935,0.00225987,66408.0,66407.0,3.027472]
[1729008777219,0.0004,66410.0,66407.0,2.95216]
[1729008777525,0.0004,66420.0,66413.0,0.075305]
[1729008777725,0.02721612,66419.0,66413.0,0.475305]
[1729008778026,0.02721612,66419.0,66413.0,0.475705]
[1729008778410,0.10251512,66419.0,66413.0,0.475705]
[1729008778924,0.02721612,66419.0,66413.0,0.475705]
[1729008779124,0.0014,66414.0,66413.0,0.488705]
[1729008779925,0.0014,66414.0,66413.0,0.350705]
[1729008780523,0.0004,66414.0,66413.0,0.937705]
[1729008780719,0.0134,66414.0,66413.0,0.338705]
[1729008781026,0.0134,66414.0,66413.0,0.336705]
[1729008781222,0.0144,66414.0,66413.0,1.388425]
[1729008781416,0.0274,66414.0,66413.0,0.336705]
[1729008781622,0.0274,66414.0,66413.0,0.076705]
[1729008781929,0.362704,66414.0,66413.0,0.0014]
[1729008782322,0.335308,66410.0,66409.0,0.0012]
[1729008782517,0.696108,66410.0,66409.0,0.0012]
[1729008782724,1.747868,66410.0,66409.0,0.0004]
[1729008783119,0.07531,66408.0,66407.0,0.0004]
[1729008783321,0.52707,66408.0,66407.0,0.0004]
[1729008783517,1.12707,66408.0,66407.0,0.0004]
[1729008784029,0.075316,66403.0,66402.0,0.0004]
[1729008784252,0.075331,66390.0,66389.0,0.075331]
[1729008784429,0.075332,66389.0,66388.0,0.00225917]
[1729008785328,0.075332,66389.0,66388.0,0.07759217]